{"text_format":"3","workbook":"xlsx","n_sheets":3,"sheets":["Arbeitszeitdokumentation","Hintergrund","Anleitung"],"not_rendered":{"images":2,"defined_names":8},"read":"whole","date_system":"1900"}

{"sheet":"Arbeitszeitdokumentation","index":0,"n_rows":55,"n_cols":12,"rows_kept":55,"merged":[[2,4,2,8],[4,4,4,8],[6,5,6,6],[6,7,6,8],[8,1,9,1],[8,8,9,10],[10,8,10,10],[11,8,11,10],[12,8,12,10],[13,8,13,10],[14,8,14,10],[15,8,15,10],[16,8,16,10],[17,8,17,10],[18,8,18,10],[19,8,19,10],[20,8,20,10],[21,8,21,10],[22,8,22,10],[23,8,23,10],[24,8,24,10],[25,8,25,10],[26,8,26,10],[27,8,27,10],[28,8,28,10],[29,8,29,10],[30,8,30,10],[31,8,31,10],[32,8,32,10],[33,8,33,10],[34,8,34,10],[35,8,35,10],[36,8,36,10],[37,8,37,10],[38,8,38,10],[39,8,39,10],[40,8,40,10],[41,8,41,10],[45,3,45,5],[45,8,45,9],[49,4,54,5]]}
[null,"Vorlage zur Dokumentation der täglichen Arbeitszeit"]
[{"$nulls":11},"   \n"]
[null,"Firma:"]
[]
[null,"Name des Mitarbeiters:"]
[]
[null,"Pers.-Nr.:",{"$nulls":3},"Monat/Jahr:  "]
[]
[null,"Kalen-dertag","Beginn","Pause","Ende","Dauer","*","aufgezeichnet","Bemerkungen"]
[null,null,"(Uhrzeit)","(Dauer)","(Uhrzeit)","(Summe)",null,"am:"]
[null,{"$f":"($H$7+ROW(B1)-1)*(MONTH(H7+1)=MONTH($H$7))","v":0}]
[null,{"$f":"($H$7+ROW(B2)-1)*(MONTH(B11+1)=MONTH($H$7))","v":1}]
[null,{"$f":"($H$7+ROW(B3)-1)*(MONTH(B12+1)=MONTH($H$7))","v":2}]
[null,3]
[null,4]
[null,5]
[null,6]
[null,7]
[null,8]
[null,9]
[null,10]
[null,11]
[null,12]
[null,13]
[null,14]
[null,15]
[null,16]
[null,17]
[null,18]
[null,19]
[null,20]
[null,21]
[null,22]
[null,23]
[null,24]
[null,25]
[null,26]
[null,27]
[null,28]
[null,29]
[null,{"$f":"($H$7+ROW(B31)-1)*(MONTH(B40+1)=MONTH($H$7))","v":30}]
[null,31]
[{"$nulls":4},"Summe:"]
[]
[]
[null,null,"Datum","Unterschrift des Arbeitnehmers",{"$nulls":3},"Datum","Unterschrift des Arbeitgebers"]
[]
[null,"* Tragen Sie in diese Spalte eines der folgenden Kürzel ein, wenn es für diesen Kalendertag zutrifft:"]
[]
[{"$nulls":4},"Schlüssel",null,"K","Krank"]
[{"$nulls":6},"U ","Urlaub"]
[{"$nulls":6},"UU","unbezahlter Urlaub"]
[{"$nulls":6},"F","Feiertag"]
[{"$nulls":6},"SA","Stundenweise abwesend"]
[{"$nulls":6},"SU","Stundenweise Urlaub"]

{"sheet":"Hintergrund","index":1,"n_rows":12,"n_cols":3,"rows_kept":12,"merged":[[1,1,1,9],[3,1,3,9],[4,2,4,9],[6,2,6,9],[8,2,8,9],[9,2,9,9],[11,1,11,9]]}
[]
["1.","Hintergrund"]
[]
[null,"Mit dem Gesetz zum Mindestlohn wurden auch Regelungen zur Dokumentation der täglichen Arbeitszeit gewisser Arbeitnehmer geschaffen. Für folgende Personengruppen müssen Sie Beginn, Ende und Dauer der täglichen Arbeitszeit aufzeichnen und mindestens zwei Jahre lang aufbewahren:"]
[null,"n","Minijobber (Ausnahme: Privathaushalte)"]
[]
[null,"n","kurzfristig Beschäftigte gem. § 8 Abs. 1 SGB IV"]
[]
[null,"n","Arbeitnehmer in den in § 2a des Schwarzarbeitsbekämpfungsgesetzes genannten "]
[null,null,"Wirtschaftszweigen."]
[]
[null,"Diese Aufzeichnungen müssen spätestens bis zum Ablauf des siebten auf den Tag der Arbeitsleistung folgenden Kalendertags erfolgen. "]

{"sheet":"Anleitung","index":2,"n_rows":10,"n_cols":3,"rows_kept":10,"merged":[[1,1,1,9],[3,2,3,9],[4,2,4,9],[5,2,5,9],[6,2,6,9],[7,2,7,9],[8,2,8,9],[9,2,9,9]]}
[]
["2.","Anleitung"]
[]
[null,"1.","Falls Sie die Arbeitsmappe bearbeiten möchten, heben Sie den Blattschutz auf. Gehen Sie auf die Registerkarte Überprüfen | Blattschutz aufheben. Das Passwort ist: Mindestlohn. Wenn die Bearbeitung abgeschlossen ist, aktivieren Sie den Blattschutz wieder: Überprüfen | Blatt schützen. Vergeben Sie dann ein Passwort Ihrer Wahl"]
[null,"2.","Vergewissern Sie sich, dass die Arbeitsmappenberechnung auf automatisch gesetzt ist. Gehen Sie dazu auf die Registerkarte Datei | Optionen | Formeln | Berechnungsoptionen | Arbeitsmappenberechnung | Automatisch"]
[null,"3.","Füllen Sie den Dokumentenkopf aus (nutzen Sie die Tabulatortaste            , um zwischen den einzelnen Zeilen/Spalten zu springen). Geben Sie im Feld Monat/Jahr den aktuellen Monat sowie das aktuelle Jahr an (MM/JJ). Daraufhin werden die zugehörigen Kalendertage in der Tabelle (linke Spalte) automatisch an den angegebenen Monat angepasst."]
[null,null,"Alternativ: \nFalls Sie eine völlig unausgefüllte Liste bevorzugen, müssen Sie in diesem Schritt nichts weiter tun. Für diesen Fall sind die Kalendertage (1 - 31) vordefiniert. "]
[null,"4.","Drucken sie anschließend die Datei aus und übergeben Sie diese dem jeweiligen Mitarbeiter."]
[null,"5.","Die vollständig und korrekt ausgefüllte Liste sollte sowohl vom Arbeitnehmern als auch vom Arbeitgeber unterschrieben werden."]
[null,"6.","Archivieren Sie die Listen mindestens zwei Jahre lang."]